fUST/lending_fUST_20240412
["ID","MTS","AMOUNT","RATE_DAILY","PERIOD"]
[322277988,1712929840033,-500.0,0.00054794,120]
[322277989,1712929840043,-500.0,0.00054794,120]
[322277991,1712929840053,-241.59,0.00054794,120]
[322277992,1712929840063,-500.0,0.00054794,120]
[322277993,1712929840072,-300.0,0.00054794,7]
[322277994,1712929840082,-500.0,0.00054794,120]
[322277995,1712929840092,-500.0,0.00054794,120]
[322277996,1712929840102,-500.0,0.00054794,120]
[322277998,1712929840112,-500.0,0.00054794,60]
[322278000,1712929840121,-500.0,0.00054794,120]
[322278001,1712929840131,-500.0,0.00054794,120]
[322278002,1712929840141,-500.0,0.00054794,120]
[322278003,1712929840150,-500.0,0.00054794,120]
[322278004,1712929840163,-500.0,0.00054794,120]
[322278006,1712929840174,-519.79491341,0.00054794,120]
[322278008,1712929840183,-500.0,0.00054794,120]
[322278010,1712929840193,-500.0,0.00054794,120]
[322278011,1712929840203,-500.0,0.00054794,120]
[322278012,1712929840212,-500.0,0.00054794,120]
[322278013,1712929840221,-500.0,0.00054794,120]
[322278015,1712929840230,-500.0,0.00054794,120]
[322278017,1712929840239,-500.0,0.00054794,120]
[322278019,1712929840249,-500.0,0.00054794,120]
[322278021,1712929840259,-500.0,0.00054794,120]
[322278023,1712929840268,-500.0,0.00054794,120]
[322278024,1712929840278,-500.0,0.00054794,120]
[322278026,1712929840287,-428.44114347,0.00054794,120]
[322278027,1712929840296,-1595.86,0.00054794,120]
[322278028,1712929840306,-500.0,0.00054794,120]
[322278029,1712929840319,-500.0,0.00054794,120]
[322278030,1712929840328,-500.0,0.00054794,120]
[322278031,1712929840337,-500.0,0.00054794,120]
[322278033,1712929840346,-500.0,0.00054794,120]
[322278035,1712929840355,-500.0,0.00054794,120]
[322278037,1712929840365,-500.0,0.00054794,120]
[322278039,1712929840374,-500.0,0.00054794,120]
[322278041,1712929840383,-500.0,0.00054794,120]
[322278043,1712929840392,-500.0,0.00054794,120]
[322278045,1712929840402,-500.0,0.00054794,120]
[322278047,1712929840415,-500.0,0.00054794,120]
[322278049,1712929840425,-500.0,0.00054794,120]
[322278051,1712929840434,-500.0,0.00054794,120]
[322278052,1712929840443,-500.0,0.00054794,120]
[322278053,1712929840452,-500.0,0.00054794,120]
[322278054,1712929840462,-500.0,0.00054794,120]
[322278055,1712929840471,-500.0,0.00054794,120]
[322278056,1712929840480,-581.50380704,0.00054794,120]
[322278057,1712929840489,-500.0,0.00054794,120]
[322278058,1712929840498,-991.96,0.00054794,120]
[322278059,1712929840507,-167.67423362,0.00054795,120]
[322278060,1712929840516,-167.67423362,0.00054795,120]
[322278061,1712929840602,-167.67423362,0.00054795,120]
[322278063,1712929840613,-167.67423362,0.00054795,120]
[322278066,1712929840622,-167.67423362,0.00054795,120]
[322278068,1712929840632,-167.67423362,0.00054795,120]
[322278071,1712929840642,-167.67423362,0.00054795,120]
[322278074,1712929840657,-167.67423362,0.00054795,120]
[322278076,1712929840668,-167.67423362,0.00054795,120]
[322278078,1712929840677,-167.67423362,0.00054795,120]
[322278080,1712929840686,-167.67423362,0.00054795,120]
[322278082,1712929840696,-167.67423362,0.00054795,120]
[322278084,1712929840705,-167.67423362,0.00054795,120]
[322278086,1712929840715,-167.67423362,0.00054795,120]
[322278088,1712929840725,-167.67423362,0.00054795,120]
[322278090,1712929840734,-167.67423362,0.00054795,120]
[322278092,1712929840743,-167.67423362,0.00054795,120]
[322278094,1712929840753,-167.67423362,0.00054795,120]
[322278096,1712929840762,-167.67423362,0.00054795,120]
[322278098,1712929840773,-168.17,0.00054795,120]
[322278100,1712929840783,-670.77193449,0.00054795,120]
[322278102,1712929840792,-670.77193449,0.00054795,120]
[322278104,1712929840801,-670.77193449,0.00054795,120]
[322278106,1712929840810,-670.77193449,0.00054795,120]
[322278108,1712929840819,-670.77193449,0.00054795,120]
[322278110,1712929840829,-670.77193449,0.00054795,120]
[322278112,1712929840838,-670.77193449,0.00054795,120]
[322278114,1712929840848,-670.77193449,0.00054795,120]
[322278116,1712929840858,-670.77193449,0.00054795,120]
[322278118,1712929840867,-670.77193449,0.00054795,120]
[322278120,1712929840878,-670.77193449,0.00054795,120]
[322278122,1712929840888,-670.77193449,0.00054795,120]
[322278124,1712929840898,-670.77193449,0.00054795,120]
[322278126,1712929840910,-670.77193449,0.00054795,120]
[322278128,1712929840920,-670.77193449,0.00054795,120]
[322278130,1712929840930,-670.77193449,0.00054795,120]
[322278132,1712929840940,-670.77193449,0.00054795,120]
[322278134,1712929840950,-670.77193449,0.00054795,120]
[322278136,1712929840959,-670.77193449,0.00054795,120]
[322278138,1712929840969,-671.27,0.00054795,120]
[322278139,1712929840979,-379.07637774,0.00054795,120]
[322278141,1712929840990,-379.07637774,0.00054795,120]
[322278143,1712929840999,-379.07637774,0.00054795,120]
[322278146,1712929841009,-379.07637774,0.00054795,120]
[322278147,1712929841018,-379.07637774,0.00054795,120]
[322278149,1712929841028,-379.07637774,0.00054795,120]
[322278151,1712929841038,-379.07637774,0.00054795,120]
[322278153,1712929841047,-379.07637774,0.00054795,120]
[322278155,1712929841057,-379.07637774,0.00054795,120]
[322278157,1712929841067,-379.07637774,0.00054795,120]
[322278160,1712929841077,-379.07637774,0.00054795,120]
[322278161,1712929841087,-379.07637774,0.00054795,120]
[322278164,1712929841097,-379.07637774,0.00054795,120]
[322278165,1712929841108,-379.07637774,0.00054795,120]
[322278167,1712929841119,-379.07637774,0.00054795,120]
[322278169,1712929841129,-379.07637774,0.00054795,120]
[322278171,1712929841140,-379.07637774,0.00054795,120]
[322278173,1712929841150,-379.07637774,0.00054795,120]
[322278176,1712929841165,-379.07637774,0.00054795,120]
[322278177,1712929841175,-379.57,0.00054795,120]
[322278179,1712929841185,-188.88867481,0.00054795,120]
[322278182,1712929841194,-1000.0,0.00055,120]
[322278183,1712929841205,-1000.0,0.00055,120]
[322278186,1712929841215,-1000.0,0.00055,120]
[322278188,1712929841225,-1000.0,0.00055,120]
[322278189,1712929841236,-1000.0,0.00055,120]
[322278191,1712929841246,-198.0,0.00055,120]
[322278193,1712929841256,-500.0,0.00055616,120]
[322278195,1712929841266,-500.0,0.00055616,120]
[322278198,1712929841275,-500.9447,0.00055616,120]
[322278199,1712929841286,-500.0,0.00055616,120]
[322278201,1712929841297,-500.0,0.00055616,120]
[322278204,1712929841306,-500.0,0.00055616,120]
[322278205,1712929841317,-500.0,0.00055616,120]
[322278208,1712929841327,-1000.0,0.00055616,7]
[322278209,1712929841337,-504.00000043,0.00055616,120]
[322278210,1712929841346,-500.0,0.00055616,120]
[322278211,1712929841356,-500.0,0.00055616,120]
[322278212,1712929841366,-500.0,0.00055616,120]
[322278213,1712929841375,-500.0,0.00055616,120]
[322278214,1712929841385,-2158.25,0.00055616,120]
[322278215,1712929841394,-504.97991679,0.00055616,120]
[322278216,1712929841404,-777.26,0.00055616,120]
[322278217,1712929841414,-1313.28,0.00055616,90]
[322278218,1712929841423,-623.47,0.00055616,120]
[322278219,1712929841433,-583.74,0.00055616,120]
[322278220,1712929841442,-500.0,0.00055616,21]
[322278221,1712929841451,-500.0,0.00055616,120]
[322278222,1712929841461,-620.04,0.00055616,120]
[322278223,1712929841471,-500.0,0.00055616,120]
[322278224,1712929841480,-436.50670645,0.00055616,120]
[322278225,1712929841490,-500.0,0.00055616,60]
[322278226,1712929841499,-500.0,0.00055616,120]
[322278227,1712929841508,-500.0,0.00055616,120]
[322278228,1712929841518,-500.0,0.00055616,120]
[322278229,1712929841528,-500.0,0.00055616,120]
[322278230,1712929841538,-492.18490399,0.00055616,120]
[322278231,1712929841549,-264.7,0.00055616,120]
[322278232,1712929841559,-606.73,0.00055616,120]
[322278233,1712929841569,-500.0,0.00055616,120]
[322278234,1712929841579,-500.0,0.00055616,120]
[322278235,1712929841589,-500.0,0.00055616,120]
[322278236,1712929841601,-1595.86,0.00055616,120]
[322278237,1712929841611,-500.0,0.00055616,120]
[322278238,1712929841621,-500.0,0.00055616,120]
[322278239,1712929841631,-500.0,0.00055616,120]
[322278240,1712929841645,-500.0,0.00055616,120]
[322278241,1712929841657,-614.77,0.00055616,120]
[322278242,1712929841668,-500.0,0.00055616,120]
[322278243,1712929841678,-572.95,0.00055616,120]
[322278244,1712929841688,-500.0,0.00055616,120]
[322278245,1712929841698,-500.0,0.00055616,120]
[322278246,1712929841707,-500.0,0.00055616,120]
[322278247,1712929841718,-500.0,0.00055616,120]
[322278248,1712929841730,-991.96,0.00055616,120]
[322278249,1712929841742,-1799.97122019,0.000557,120]
[322278250,1712929841752,-351.727026,0.00056236,2]
[322278251,1712929841762,-198.016785,0.00056236,2]
[322278252,1712929841771,-281.584071,0.00056236,2]
[322278253,1712929841782,-500.0,0.00056438,120]
[322278254,1712929841792,-500.0,0.00056438,120]
[322278255,1712929841801,-1000.0,0.00056438,7]
[322278256,1712929841810,-500.0,0.00056438,120]
[322278257,1712929841819,-500.0,0.00056438,120]
[322278258,1712929841831,-500.0,0.00056438,120]
[322278259,1712929841841,-500.0,0.00056438,120]
[322278260,1712929841852,-2158.25,0.00056438,120]
[322278261,1712929841861,-777.26,0.00056438,120]
[322278262,1712929841870,-1313.28,0.00056438,90]
[322278263,1712929841879,-500.0,0.00056438,21]
[322278264,1712929841889,-261.31,0.00056438,120]
[322278265,1712929841899,-500.0,0.00056438,120]
[322278266,1712929841911,-500.0,0.00056438,120]
[322278267,1712929841920,-500.0,0.00056438,120]
[322278268,1712929841932,-500.0,0.00056438,120]
[322278269,1712929841945,-500.0,0.00056438,120]
[322278270,1712929841955,-500.0,0.00056438,120]
[322278271,1712929841966,-500.0,0.00056438,120]
[322278272,1712929841976,-500.0,0.00056438,120]
[322278273,1712929841986,-1595.86,0.00056438,120]
[322278274,1712929841996,-500.0,0.00056438,120]
[322278275,1712929842006,-500.0,0.00056438,120]
[322278276,1712929842016,-500.0,0.00056438,120]
[322278277,1712929842027,-305.13,0.00056438,120]
[322278278,1712929842037,-404.421255,0.00056438,120]
[322278279,1712929842047,-458.28,0.00056438,120]
[322278280,1712929842057,-500.0,0.00056438,120]
[322278281,1712929842066,-602.07,0.00056438,120]
[322278282,1712929842076,-500.0,0.00056438,120]
[322278283,1712929842086,-1760.83336052,0.00057,120]
[322278284,1712929842095,-326.04,0.0005726,120]
[322278285,1712929842105,-500.0,0.0005726,120]
[322278286,1712929842115,-557.96,0.0005726,7]
[322278287,1712929842125,-500.0,0.0005726,120]
[322278288,1712929842135,-500.0,0.0005726,120]
[322278289,1712929842146,-500.0,0.0005726,120]
[322278290,1712929842158,-500.0,0.0005726,120]
[322278291,1712929842168,-2158.25,0.0005726,120]
[322278292,1712929842178,-777.26,0.0005726,120]
[322278293,1712929842188,-1313.28,0.0005726,90]
[322278294,1712929842199,-500.0,0.0005726,21]
[322278295,1712929842209,-500.0,0.0005726,120]
[322278296,1712929842220,-500.0,0.0005726,120]
[322278297,1712929842230,-500.0,0.0005726,120]
[322278298,1712929842241,-179.98,0.0005726,120]
[322278299,1712929842250,-500.0,0.0005726,120]
[322278300,1712929842260,-500.0,0.0005726,120]
[322278301,1712929842271,-500.0,0.0005726,120]
[322278302,1712929842282,-1595.86,0.0005726,120]
[322278303,1712929842291,-500.0,0.0005726,120]
[322278304,1712929842301,-500.0,0.0005726,120]
[322278305,1712929842312,-500.0,0.0005726,120]
[322278306,1712929842323,-500.0,0.0005726,120]
[322278307,1712929842333,-268.33,0.0005726,120]
[322278308,1712929842343,-165.655479,0.00057285,2]
[322278309,1712929842353,-198.0,0.00057534,120]
[322278310,1712929842363,-1200.0,0.00058,120]
[322278311,1712929842373,-500.0,0.00058082,120]
[322278312,1712929842384,-486.955927,0.00058082,120]
[322278313,1712929842394,-500.0,0.00058082,120]
[322278314,1712929842404,-500.0,0.00058082,120]
[322278315,1712929842417,-500.0,0.00058082,120]
[322278316,1712929842427,-2158.25,0.00058082,120]
[322278317,1712929842438,-777.26,0.00058082,120]
[322278318,1712929842447,-1313.28,0.00058082,90]
[322278319,1712929842458,-500.0,0.00058082,21]
[322278320,1712929842467,-348.85,0.00058082,120]
[322278321,1712929842477,-325.53,0.00058082,120]
[322278322,1712929842488,-500.0,0.00058082,120]
[322278323,1712929842498,-500.0,0.00058082,120]
[322278324,1712929842508,-500.0,0.00058082,120]
[322278325,1712929842517,-500.0,0.00058082,120]
[322278326,1712929842527,-1595.86,0.00058082,120]
[322278327,1712929842536,-500.0,0.00058082,120]
[322278328,1712929842546,-500.0,0.00058082,120]
[322278329,1712929842555,-500.0,0.00058082,120]
[322278330,1712929842564,-313.15,0.00058082,120]
[322278331,1712929842574,-200.0,0.00058421,120]
[322278332,1712929842583,-1008.22270885,0.000587,60]
[322278333,1712929842592,-6198.0,0.00058708,10]
[322278334,1712929842601,-500.0,0.00058904,120]
[322278335,1712929842610,-500.0,0.00058904,120]
[322278336,1712929842620,-500.0,0.00058904,120]
[322278337,1712929842629,-500.0,0.00058904,120]
[322278338,1712929842639,-2158.25,0.00058904,120]
[322278339,1712929842649,-777.26,0.00058904,120]
[322278340,1712929842661,-1313.28,0.00058904,90]
[322278342,1712929842671,-479.72,0.00058904,21]
[322278344,1712929842681,-500.0,0.00058904,120]
[322278346,1712929842691,-500.0,0.00058904,120]
[322278347,1712929842700,-500.0,0.00058904,120]
[322278348,1712929842709,-246.2,0.00058904,120]
[322278349,1712929842718,-1595.86,0.00058904,120]
[322278350,1712929842729,-500.0,0.00058904,120]
[322278351,1712929842738,-500.0,0.00058904,120]
[322278352,1712929842747,-500.0,0.00058904,120]
[322278353,1712929842756,-500.0,0.00059726,120]
[322278354,1712929842766,-500.0,0.00059726,120]
[322278355,1712929842776,-259.57751703,0.00059726,120]
[322278357,1712929842785,-500.0,0.00059726,120]
[322278359,1712929842794,-2158.25,0.00059726,120]
[322278361,1712929842803,-777.26,0.00059726,120]
[322278362,1712929842813,-1313.28,0.00059726,90]
[322278364,1712929842822,-500.0,0.00059726,120]
[322278365,1712929842831,-500.0,0.00059726,120]
[322278367,1712929842841,-500.0,0.00059726,120]
[322278369,1712929842850,-1595.86,0.00059726,120]
[322278371,1712929842859,-500.0,0.00059726,120]
[322278373,1712929842868,-500.0,0.00059726,120]
[322278375,1712929842877,-573.73,0.00059726,120]
[322278376,1712929842886,-2217.68516068,0.0006,120]
[322278382,1712929842972,-71206.98266441,0.0006,120]
[322278385,1712929842981,-2008.57284372,0.0006,30]
[322278387,1712929842991,-671.49786525,0.0006,12]
[322278389,1712929843000,-5016.33297419,0.0006,30]
[322278391,1712929843009,-45801.40016734,0.0006,2]
[322278394,1712929843018,-1500.0,0.0006,120]
[322278397,1712929843028,-500.16,0.0006,14]
[322278400,1712929843037,-2002.06776092,0.0006,60]
[322278402,1712929843046,-544.70703,0.0006,120]
[322278403,1712929843055,-1200.0,0.0006,120]
[322278404,1712929843064,-905.0,0.00060016,120]
[322278406,1712929843073,-500.0,0.00060547,120]
[322278407,1712929843082,-500.0,0.00060547,120]
[322278408,1712929843091,-500.0,0.00060547,120]
[322278409,1712929843100,-2158.25,0.00060547,120]
[322278410,1712929843109,-777.26,0.00060547,120]
[322278411,1712929843118,-1313.28,0.00060547,90]
[322278412,1712929843127,-500.0,0.00060547,120]
[322278413,1712929843136,-500.0,0.00060547,120]
[322278414,1712929843145,-500.0,0.00060547,120]
[322278415,1712929843154,-1595.86,0.00060547,120]
[322278416,1712929843165,-253.27734682,0.00060547,120]
[322278417,1712929843174,-500.0,0.00060547,120]
[322278418,1712929843183,-500.0,0.00061369,120]
[322278419,1712929843193,-500.0,0.00061369,120]
[322278420,1712929843202,-500.0,0.00061369,120]
[322278421,1712929843211,-2158.25,0.00061369,120]
[322278422,1712929843219,-777.26,0.00061369,120]
[322278423,1712929843228,-1313.28,0.00061369,90]
[322278424,1712929843238,-500.0,0.00061369,120]
[322278425,1712929843247,-500.0,0.00061369,120]
[322278426,1712929843257,-572.68,0.00061369,120]
[322278427,1712929843266,-1595.86,0.00061369,120]
[322278429,1712929843275,-500.0,0.00061369,120]
[322278430,1712929843284,-344.91452185,0.000616,120]
[322278432,1712929843294,-670.0,0.000618,60]
[322278434,1712929843303,-1000.0,0.000618,60]
[322278436,1712929843312,-351.727026,0.00062004,2]
[322278438,1712929843321,-198.016785,0.00062004,2]
[322278440,1712929843331,-281.584071,0.00062004,2]
[322278442,1712929843340,-500.0,0.00062191,120]
[322278444,1712929843349,-484.01917662,0.00062191,120]
[322278446,1712929843358,-500.0,0.00062191,120]
[322278448,1712929843367,-2158.25,0.00062191,120]
[322278450,1712929843377,-777.26,0.00062191,120]
[322278451,1712929843386,-1313.28,0.00062191,90]
[322278452,1712929843395,-500.0,0.00062191,120]
[322278454,1712929843404,-500.0,0.00062191,120]
[322278456,1712929843416,-1595.86,0.00062191,120]
[322278458,1712929843425,-500.0,0.00062191,120]
[322278459,1712929843434,-500.0,0.00063013,120]
[322278462,1712929843444,-500.0,0.00063013,120]
[322278464,1712929843453,-2158.25,0.00063013,120]
[322278466,1712929843462,-777.26,0.00063013,120]
[322278468,1712929843471,-1313.28,0.00063013,90]
[322278470,1712929843481,-500.0,0.00063013,120]
[322278472,1712929843490,-500.0,0.00063013,120]
[322278473,1712929843502,-1595.86,0.00063013,120]
[322278475,1712929843511,-500.0,0.00063013,120]
[322278477,1712929843520,-905.0,0.00063175,120]
[322278479,1712929843529,-3239.5400966,0.000633,120]
[322278481,1712929843538,-200.0,0.00063769,120]
[322278483,1712929843547,-229.11562185,0.00063835,120]
[322278485,1712929843556,-500.0,0.00063835,120]
[322278487,1712929843566,-2158.25,0.00063835,120]
[322278490,1712929843577,-777.26,0.00063835,120]
[322278492,1712929843586,-1313.28,0.00063835,90]
[322278494,1712929843596,-500.0,0.00063835,120]
[322278496,1712929843605,-194.51413693,0.00063835,120]
[322278498,1712929843614,-1595.86,0.00063835,120]
[322278500,1712929843623,-344.40773078,0.00063835,120]
[322278502,1712929843632,-172.776604,0.00063927,2]
[322278504,1712929843641,-1200.0,0.000642,120]
[322278506,1712929843653,-7234.0,0.00064579,20]
[322278508,1712929843665,-500.0,0.00064657,120]
[322278510,1712929843674,-2158.25,0.00064657,120]
[322278512,1712929843684,-777.26,0.00064657,120]
[322278514,1712929843694,-1313.28,0.00064657,90]
[322278516,1712929843703,-500.0,0.00064657,120]
[322278518,1712929843712,-1595.86,0.00064657,120]
[322278520,1712929843722,-1010.0,0.0006497,35]
[322278522,1712929843731,-150.5,0.0006497,35]
[322278524,1712929843740,-1010.0,0.0006498,35]
[322278526,1712929843749,-150.5,0.0006498,35]
[322278528,1712929843758,-1010.0,0.0006499,35]
[322278530,1712929843767,-150.5,0.0006499,35]
[322278532,1712929843777,-500000.0,0.00065,2]
[322278534,1712929843786,-500.0,0.00065479,120]
[322278535,1712929843795,-2158.25,0.00065479,120]
[322278537,1712929843804,-777.26,0.00065479,120]
[322278539,1712929843814,-1313.28,0.00065479,90]
[322278541,1712929843822,-500.0,0.00065479,120]
[322278543,1712929843832,-1595.86,0.00065479,120]
[322278544,1712929843841,-500.0,0.00065753,120]
[322278546,1712929843850,-500.0,0.00065753,120]
[322278547,1712929843859,-500.0,0.00065753,120]
[322278548,1712929843868,-500.0,0.00065753,120]
[322278549,1712929843877,-500.0,0.00065753,120]
[322278551,1712929843886,-532.90288554,0.00065753,120]
[322278552,1712929843895,-642.89,0.00065753,120]
[322278554,1712929843905,-642.89,0.00065753,120]
[322278556,1712929843916,-642.89,0.00065753,120]
[322278557,1712929843926,-642.89,0.00065753,120]
[322278558,1712929843935,-642.89,0.00065753,120]
[322278559,1712929843944,-642.89,0.00065753,120]
[322278560,1712929843956,-642.89,0.00065753,120]
[322278561,1712929843968,-642.89,0.00065753,120]
[322278562,1712929843981,-642.89,0.00065753,120]
[322278563,1712929843994,-642.89,0.00065753,120]
[322278564,1712929844006,-642.89,0.00065753,120]
[322278565,1712929844018,-642.89,0.00065753,120]
[322278566,1712929844028,-642.89,0.00065753,120]
[322278567,1712929844038,-642.89,0.00065753,120]
[322278568,1712929844051,-1000.0,0.00065753,120]
[322278569,1712929844063,-1000.0,0.00065753,120]
[322278570,1712929844074,-1000.0,0.00065753,120]
[322278571,1712929844086,-382.38551782,0.00065753,120]
[322278572,1712929844098,-642.89,0.00066301,120]
[322278573,1712929844110,-500.0,0.00066301,120]
[322278574,1712929844122,-2158.25,0.00066301,120]
[322278575,1712929844133,-777.26,0.00066301,120]
[322278576,1712929844144,-1313.28,0.00066301,90]
[322278577,1712929844156,-500.0,0.00066301,120]
[322278578,1712929844168,-1595.86,0.00066301,120]
[322278579,1712929844178,-200.0,0.00066499,120]
[322278580,1712929844190,-905.0,0.000665,120]
[322278581,1712929844201,-200.0,0.00066609,120]
[322278582,1712929844213,-285.20510678,0.000669,120]
[322278583,1712929844224,-642.89,0.00067123,120]
[322278584,1712929844237,-500.0,0.00067123,120]
[322278585,1712929844248,-2158.25,0.00067123,120]
[322278586,1712929844259,-777.26,0.00067123,120]
[322278587,1712929844270,-1313.28,0.00067123,90]
[322278588,1712929844282,-500.0,0.00067123,120]
[322278589,1712929844293,-1595.86,0.00067123,120]
[322278590,1712929844304,-165.655479,0.00067248,2]
[322278591,1712929844314,-351.727026,0.00067772,2]
[322278592,1712929844323,-198.016785,0.00067772,2]
[322278593,1712929844334,-281.584071,0.00067772,2]
[322278594,1712929844347,-642.89,0.00067945,120]
[322278595,1712929844359,-500.0,0.00067945,120]
[322278596,1712929844369,-2158.25,0.00067945,120]
[322278597,1712929844380,-777.26,0.00067945,120]
[322278598,1712929844392,-1313.28,0.00067945,90]
[322278599,1712929844402,-500.0,0.00067945,120]
[322278600,1712929844415,-1595.86,0.00067945,120]
[322278601,1712929844426,-150.83408251,0.00068113,2]
[322278602,1712929844437,-1407.47707785,0.00068493,120]
[322278603,1712929844448,-642.89,0.00068767,120]
[322278604,1712929844459,-500.0,0.00068767,120]
[322278605,1712929844470,-2158.25,0.00068767,120]
[322278606,1712929844481,-777.26,0.00068767,120]
[322278607,1712929844493,-1313.28,0.00068767,90]
[322278608,1712929844506,-500.0,0.00068767,120]
[322278609,1712929844518,-1595.86,0.00068767,120]
[322278610,1712929844530,-154.82968734,0.00069,7]
[322278611,1712929844542,-642.89,0.00069589,120]
[322278612,1712929844554,-500.0,0.00069589,120]
[322278613,1712929844565,-2158.25,0.00069589,120]
[322278614,1712929844576,-777.26,0.00069589,120]
[322278615,1712929844586,-1313.28,0.00069589,90]
[322278616,1712929844595,-500.0,0.00069589,120]
[322278617,1712929844605,-1595.86,0.00069589,120]
[322278618,1712929844615,-905.0,0.0007,120]
[322278619,1712929844625,-37419.39583831,0.0007,120]
[322278620,1712929844636,-707.0,0.0007,120]
[322278621,1712929844647,-415.12190832,0.0007,120]
[322278622,1712929844660,-9215.93617162,0.0007,120]
[322278623,1712929844672,-203.56170831,0.0007,7]
[322278624,1712929844684,-869.75602036,0.0007,60]
[322278625,1712929844695,-642.89,0.0007041,120]
[322278626,1712929844707,-500.0,0.0007041,120]
[322278627,1712929844719,-2158.25,0.0007041,120]
[322278628,1712929844730,-777.26,0.0007041,120]
[322278629,1712929844741,-1313.28,0.0007041,90]
[322278630,1712929844751,-500.0,0.0007041,120]
[322278631,1712929844762,-1595.86,0.0007041,120]
[322278632,1712929844771,-1000.0,0.00070987,2]
[322278633,1712929844782,-642.89,0.00071232,120]
[322278634,1712929844793,-500.0,0.00071232,120]
[322278635,1712929844804,-2158.25,0.00071232,120]
[322278636,1712929844816,-777.26,0.00071232,120]
[322278637,1712929844827,-1313.28,0.00071232,90]
[322278638,1712929844837,-500.0,0.00071232,120]
[322278639,1712929844847,-1595.86,0.00071232,120]
[322278640,1712929844857,-1000.0,0.00071987,2]
[322278641,1712929844867,-3264.54905183,0.00072,120]
[322278642,1712929844878,-642.89,0.00072054,120]
[322278643,1712929844889,-500.0,0.00072054,120]
[322278644,1712929844899,-2158.25,0.00072054,120]
[322278645,1712929844912,-777.26,0.00072054,120]
[322278646,1712929844922,-1313.28,0.00072054,90]
[322278647,1712929844933,-500.0,0.00072054,120]
[322278648,1712929844944,-1595.86,0.00072054,120]
[322278649,1712929844954,-199.0,0.00072493,120]
[322278650,1712929844965,-642.89,0.00072876,120]
[322278651,1712929844976,-500.0,0.00072876,120]
[322278652,1712929844987,-2158.25,0.00072876,120]
[322278653,1712929844999,-777.26,0.00072876,120]
[322278654,1712929845010,-1313.28,0.00072876,90]
[322278655,1712929845020,-298.42,0.00072876,120]
[322278656,1712929845031,-1595.86,0.00072876,120]
[322278657,1712929845041,-1000.0,0.00072987,3]
[322278658,1712929845051,-1000.0,0.00072987,2]
[322278659,1712929845062,-151.0,0.000732,120]
[322278660,1712929845073,-905.0,0.000735,120]
[322278661,1712929845083,-351.727026,0.0007354,120]
[322278662,1712929845093,-198.016785,0.0007354,120]
[322278663,1712929845103,-281.584071,0.0007354,120]
[322278664,1712929845113,-643.0520423,0.00073698,120]
[322278665,1712929845229,-351.06,0.00073698,120]
[322278666,1712929845239,-2158.43551761,0.00073698,120]
[322278667,1712929845249,-777.44170969,0.00073698,120]
[322278668,1712929845258,-1313.30820086,0.00073698,90]
[322278669,1712929845267,-1595.87593154,0.00073698,120]
[322278670,1712929845277,-500.19744212,0.00073972,120]
[322278671,1712929845286,-415.12604386,0.00073973,120]
[322278672,1712929845295,-1000.0,0.00073987,3]
[322278673,1712929845305,-1000.0,0.00073987,4]
[322278674,1712929845314,-1000.0,0.00073987,2]